[Event "Hector S Nazzari Memorial 2019"]
[Site "Montevideo"]
[Date "2019.10.14"]
[Round "1.1"]
[White "Vaz Lacuesta, Leonardo"]
[Black "Hoffman, Alejandro"]
[Result "0-1"]
[ECO "C41"]
[WhiteElo "2103"]
[BlackElo "2449"]
[Annotator "RC"]
[PlyCount "86"]
[EventDate "2019.10.14"]
[EventType "swiss"]
[EventCountry "URU"]
[SourceTitle "playchess.com"]
[Source "ChessBase"]
[SourceQuality "1"]
[TimeControl "5400+30"]

1. e4 {[%emt 0:00:00]} e5 {[%emt 0:00:04]} 2. Nf3 {[%emt 0:00:31]} d6 {[%emt 0:00:07]} 3. d4 {[%emt 0:01:10]} exd4 {[%emt 0:00:08]} 4. Nxd4 {[%emt 0:00:05]} Nf6 {[%emt 0:00:06]} 5. Nc3 {[%emt 0:00:41]} Be7 {[%emt 0:00:14]} 6. Be2 {[%emt 0:03:20]} O-O {[%emt 0:00:10]} 7. O-O {[%emt 0:01:04]} Re8 {[%emt 0:00:09]} 8. Bf4 {[%emt 0:03:29]} Bf8 {[%emt 0:01:01]} 9. Bf3 {[%emt 0:02:13]} c6 {[%emt 0:01:08]} 10. Re1 {[%emt 0:03:26]} Nbd7 {[%emt 0:02:32]} 11. Bg3 {[%emt 0:02:50]} Ne5 {[%emt 0:02:54]} 12. Be2 {[%emt 0:01:33]} Ng6 {[%emt 0:01:15]} 13. Bf3 {[%emt 0:02:16]} a5 {[%emt 0:02:48]} 14. a4 {[%emt 0:01:57]} Qb6 {[%emt 0:02:08]} 15. Rb1 {[%emt 0:04:48]} Bd7 {[%emt 0:04:39]} 16. Qd2 {[%emt 0:09:28]} Rad8 {[%emt 0:04:32]} 17. h3 {[%emt 0:14:25]} h6 {[%emt 0:01:14]} 18. Re3 {[%emt 0:04:31]} Bc8 {[%emt 0:02:27]} 19. Nb3 {[%emt 0:06:23]} Be6 {[%emt 0:02:45]} 20. Nd4 {[%emt 0:07:49]} Ne5 {[%emt 0:07:24]} 21. Be2 {[%emt 0:01:22]} Bc4 {[%emt 0:00:32]} 22. Bh4 {[%emt 0:02:29]} g5 {[%emt 0:00:46]} 23. Rg3 {[%emt 0:13:15]} Bxe2 {[%emt 0:00:35]} 24. Bxg5 {[%emt 0:02:29]} hxg5 {[%emt 0:00:09]} 25. Qxg5+ {[%emt 0:00:42]} Ng6 26. Qxf6 {[%emt 0:01:51]} Bg7 {[%emt 0:00:26]} 27. Qg5 {[%emt 0:01:54]} Qxd4 {[%emt 0:00:20]} 28. Nxe2 {[%emt 0:00:59]} Qxe4 {[%emt 0:00:52]} 29. Re3 {[%emt 0:01:49]} Qd5 {[%emt 0:02:25]} 30. Qxd5 {[%emt 0:03:47]} cxd5 {[%emt 0:00:07]} 31. Rxe8+ {[%emt 0:00:28]} Rxe8 {[%emt 0:00:07]} 32. Kf1 {[%emt 0:00:03]} d4 {[%emt 0:03:01]} 33. Rd1 {[%emt 0:01:00]} Rc8 {[%emt 0:00:08]} 34. c3 {[%emt 0:01:02]} dxc3 {[%emt 0:00:16]} 35. bxc3 {[%emt 0:00:05]} Rc4 {[%emt 0:01:05]} 36. Rxd6 {[%emt 0:01:32]} Rxa4 {[%emt 0:00:10]} 37. Ke1 {[%emt 0:00:05]} Ra1+ {[%emt 0:02:15]} 38. Kd2 {[%emt 0:00:11]} Bh6+ {[%emt 0:00:32]} 39. Kc2 {[%emt 0:01:08]} Ra2+ {[%emt 0:00:09]} 40. Kd1 {[%emt 0:00:06]} a4 {[%emt 0:00:30]} 41. Rd8+ {[%emt 0:00:55]} Bf8 {[%emt 0:01:00]} 42. f4 {[%emt 0:00:31]} a3 {[%emt 0:01:09]} 43. g4 {[%emt 0:00:44]} Rb2 {[%emt 0:01:06]} 0-1

[Event "Hector S Nazzari Memorial 2019"]
[Site "Montevideo"]
[Date "2019.10.14"]
[Round "1.2"]
[White "Diaz Hollemaert, Nahuel"]
[Black "Vazquez, Facundo"]
[Result "1/2-1/2"]
[ECO "E91"]
[WhiteElo "2439"]
[BlackElo "2103"]
[Annotator "RC"]
[PlyCount "67"]
[EventDate "2019.10.14"]
[EventType "swiss"]
[EventCountry "URU"]
[SourceTitle "playchess.com"]
[Source "ChessBase"]
[SourceQuality "1"]
[TimeControl "5400+30"]

1. Nf3 {[%emt 0:00:00]} Nf6 {[%emt 0:00:00]} 2. c4 {[%emt 0:01:01]} g6 {[%emt 0:00:01]} 3. Nc3 {[%emt 0:02:27]} Bg7 {[%emt 0:00:51]} 4. e4 {[%emt 0:00:05]} d6 {[%emt 0:00:14]} 5. d4 {[%emt 0:00:05]} O-O {[%emt 0:01:02]} 6. Be2 {[%emt 0:02:35]} Na6 {[%emt 0:00:49]} 7. O-O {[%emt 0:12:42]} e5 {[%emt 0:04:47]} 8. Qc2 {[%emt 0:04:00]} Qe8 {[%emt 0:14:48]} 9. Rd1 {[%emt 0:12:29]} Nb4 {[%emt 0:10:07]} 10. Qb1 {[%emt 0:03:55]} exd4 {[%emt 0:09:12]} 11. Nxd4 {[%emt 0:00:17]} a6 {[%emt 0:03:57]} 12. Bf4 {[%emt 0:05:30]} Nd7 {[%emt 0:04:47]} 13. Bf1 {[%emt 0:17:31]} Nc5 {[%emt 0:04:35]} 14. Nd5 {[%emt 0:16:45]} Nxd5 {[%emt 0:04:12]} 15. exd5 {[%emt 0:00:01]} a5 {[%emt 0:03:05]} 16. Qc2 {[%emt 0:04:49]} Bd7 {[%emt 0:03:08]} 17. Re1 {[%emt 0:04:35]} Qd8 {[%emt 0:01:07]} 18. Rad1 {[%emt 0:00:03]} Re8 {[%emt 0:01:34]} 19. Rxe8+ {[%emt 0:04:56]} Qxe8 {[%emt 0:00:03]} 20. b3 {[%emt 0:00:44]} Qe4 {[%emt 0:03:21]} 21. Qd2 {[%emt 0:02:25]} Qxd4 {[%emt 0:02:51]} 22. Qxd4 {[%emt 0:00:02]} Bxd4 {[%emt 0:00:13]} 23. Rxd4 {[%emt 0:00:02]} Re8 {[%emt 0:00:31]} 24. Bd2 {[%emt 0:01:01]} b6 {[%emt 0:01:01]} 25. f3 {[%emt 0:00:05]} Bf5 {[%emt 0:01:51]} 26. Bc3 {[%emt 0:03:08]} Re3 {[%emt 0:01:38]} 27. Bd2 {[%emt 0:00:26]} Re8 {[%emt 0:00:03]} 28. Bg5 {[%emt 0:01:19]} Kg7 {[%emt 0:02:38]} 29. Kf2 {[%emt 0:00:24]} h6 {[%emt 0:01:47]} 30. Be3 {[%emt 0:00:11]} g5 {[%emt 0:00:50]} 31. Rd2 {[%emt 0:00:58]} Bg6 {[%emt 0:01:31]} 32. Bd4+ {[%emt 0:00:28]} f6 {[%emt 0:00:52]} 33. Be2 {[%emt 0:00:48]} Kf7 {[%emt 0:01:12]} 34. Be3 {[%emt 0:00:38]} 1/2-1/2

[Event "Hector S Nazzari Memorial 2019"]
[Site "Montevideo"]
[Date "2019.10.14"]
[Round "1.3"]
[White "Saralegui, Mario"]
[Black "Roselli Mailhe, Bernardo"]
[Result "0-1"]
[ECO "E92"]
[WhiteElo "2059"]
[BlackElo "2435"]
[Annotator "RC"]
[PlyCount "42"]
[EventDate "2019.10.14"]
[EventType "swiss"]
[EventCountry "URU"]
[SourceTitle "playchess.com"]
[Source "ChessBase"]
[SourceQuality "1"]
[TimeControl "5400+30"]

1. d4 {[%emt 0:00:00]} Nf6 {[%emt 0:03:16]} 2. c4 {[%emt 0:00:05]} g6 {[%emt 0:00:18]} 3. Nc3 {[%emt 0:00:13]} Bg7 {[%emt 0:00:08]} 4. e4 {[%emt 0:00:31]} d6 {[%emt 0:00:32]} 5. Be2 {[%emt 0:00:42]} O-O {[%emt 0:00:06]} 6. Nf3 {[%emt 0:00:21]} e5 {[%emt 0:00:05]} 7. Be3 {[%emt 0:00:21]} h6 {[%emt 0:00:32]} 8. dxe5 {[%emt 0:05:48]} Ng4 {[%emt 0:08:46]} 9. Bc1 {[%emt 0:03:10]} Nxe5 {[%emt 0:02:24]} 10. Nxe5 {[%emt 0:04:14]} dxe5 {[%emt 0:00:29]} 11. Qxd8 {[%emt 0:05:58]} Rxd8 {[%emt 0:00:15]} 12. Nd5 {[%emt 0:00:08]} Na6 {[%emt 0:00:51]} 13. Be3 {[%emt 0:00:46]} Bf8 {[%emt 0:08:05]} 14. O-O-O {[%emt 0:08:39]} Be6 {[%emt 0:01:52]} 15. f4 {[%emt 0:00:43]} exf4 {[%emt 0:09:21]} 16. Nxf4 {[%emt 0:02:57]} Re8 {[%emt 0:12:57]} 17. Nxe6 {[%emt 0:12:06]} Rxe6 {[%emt 0:02:35]} 18. Bf3 {[%emt 0:00:46]} Rae8 {[%emt 0:05:15]} 19. Bf4 {[%emt 0:14:40]} c6 {[%emt 0:06:40]} 20. Rd7 {[%emt 0:02:20]} Nc5 {[%emt 0:00:50]} 21. Rc7 {[%emt 0:00:13]} Nd3+ {[%emt 0:00:21]} 0-1

[Event "Hector S Nazzari Memorial 2019"]
[Site "Montevideo"]
[Date "2019.10.15"]
[Round "1.4"]
[White "Vitoux, Colomban"]
[Black "Bustelo, Tabare"]
[Result "1-0"]
[ECO "A06"]
[WhiteElo "2381"]
[BlackElo "2054"]
[Annotator "ChessBase"]
[PlyCount "114"]
[EventDate "2019.10.14"]
[EventType "swiss"]
[EventCountry "URU"]
[SourceTitle "playchess.com"]
[Source "ChessBase"]
[SourceQuality "1"]
[TimeControl "5400+30"]

1. Nf3 {[%emt 0:00:00]} d5 {[%emt 0:00:25]} 2. g3 {[%emt 0:00:33]} Nc6 {[%emt 0:00:55]} 3. d4 {[%emt 0:00:19]} Bg4 {[%emt 0:00:36]} 4. Bg2 {[%emt 0:00:09]} Nf6 {[%emt 0:00:26]} 5. h3 {[%emt 0:02:42]} Bxf3 {[%emt 0:00:23]} 6. exf3 {[%emt 0:02:03]} e5 {[%emt 0:04:24]} 7. dxe5 {[%emt 0:00:40]} Nxe5 {[%emt 0:05:13]} 8. Qe2 {[%emt 0:00:24]} Qe7 {[%emt 0:00:38]} 9. O-O {[%emt 0:08:40]} O-O-O {[%emt 0:01:13]} 10. Nc3 {[%emt 0:03:29]} d4 {[%emt 0:04:15]} 11. f4 {[%emt 0:10:05]} Ned7 {[%emt 0:04:30]} 12. Qf3 {[%emt 0:13:16]} c6 {[%emt 0:03:36]} 13. Ne2 {[%emt 0:06:10]} Nb6 {[%emt 0:04:37]} 14. Rd1 {[%emt 0:05:23]} Qc5 {[%emt 0:12:48]} 15. a4 {[%emt 0:11:21]} Qxc2 {[%emt 0:11:17]} 16. Nxd4 {[%emt 0:01:20]} Qc4 {[%emt 0:04:25]} 17. a5 {[%emt 0:03:13]} Rxd4 {[%emt 0:09:01]} 18. axb6 {[%emt 0:02:59]} Rxd1+ {[%emt 0:05:31]} 19. Qxd1 {[%emt 0:00:02]} a6 {[%emt 0:00:19]} 20. Be3 {[%emt 0:05:35]} Be7 {[%emt 0:08:03]} 21. Bf1 {[%emt 0:00:52]} Qb4 {[%emt 0:01:48]} 22. Ra4 {[%emt 0:05:19]} Qxb2 {[%emt 0:02:12]} 23. Bd4 {[%emt 0:08:22]} Rd8 {[%emt 0:03:29]} 24. Bd3 {[%emt 0:03:44]} Rxd4 {[%emt 0:00:27]} 25. Rxd4 {[%emt 0:00:06]} Qxb6 {[%emt 0:00:14]} 26. Bf5+ {[%emt 0:00:46]} Kb8 {[%emt 0:00:21]} 27. Rd3 {[%emt 0:00:28]} a5 {[%emt 0:01:12]} 28. Qe2 {[%emt 0:00:29]} Bc5 {[%emt 0:01:20]} 29. Kg2 {[%emt 0:00:49]} Ka7 {[%emt 0:01:44]} 30. Qc2 {[%emt 0:03:34]} g6 {[%emt 0:00:36]} 31. Rb3 {[%emt 0:00:19]} Bb4 {[%emt 0:00:12]} 32. Bd3 {[%emt 0:00:11]} Qd4 {[%emt 0:02:03]} 33. Bc4 {[%emt 0:00:16]} Qd7 {[%emt 0:03:40]} 34. Qa2 {[%emt 0:00:41]} Qe7 {[%emt 0:01:00]} 35. Re3 {[%emt 0:00:12]} Qc5 {[%emt 0:02:21]} 36. Bxf7 {[%emt 0:00:08]} Nd7 {[%emt 0:01:42]} 37. Bg8 {[%emt 0:00:31]} Nf6 {[%emt 0:00:36]} 38. Be6 {[%emt 0:00:24]} b5 {[%emt 0:00:20]} 39. Qa1 {[%emt 0:01:12]} Qf8 {[%emt 0:00:34]} 40. f5 {[%emt 0:01:31]} gxf5 {[%emt 0:00:13]} 41. Qe5 {[%emt 0:00:55]} Bd6 {[%emt 0:01:04]} 42. Qxf5 {[%emt 0:00:09]} Nd5 {[%emt 0:00:44]} 43. Qxh7+ {[%emt 0:00:24]} Kb6 {[%emt 0:00:31]} 44. Bxd5 {[%emt 0:00:12]} cxd5 {[%emt 0:00:04]} 45. Qd7 {[%emt 0:00:44]} a4 {[%emt 0:00:52]} 46. Rd3 {[%emt 0:01:45]} Qe7 {[%emt 0:00:15]} 47. Qf5 {[%emt 0:00:13]} Qb7 {[%emt 0:00:44]} 48. Rxd5 {[%emt 0:00:35]} a3 {[%emt 0:00:22]} 49. Kh2 {[%emt 0:00:26]} Qc6 {[%emt 0:00:20]} 50. Rd2 {[%emt 0:00:45]} b4 {[%emt 0:00:15]} 51. Qd3 {[%emt 0:00:17]} Bc5 {[%emt 0:00:20]} 52. Qc4 {[%emt 0:00:19]} Qb5 {[%emt 0:00:18]} 53. Qe6+ {[%emt 0:00:02]} Qc6 {[%emt 0:00:39]} 54. Qg8 {[%emt 0:00:16]} Kb5 {[%emt 0:00:47]} 55. Rc2 {[%emt 0:01:00]} Qd6 {[%emt 0:00:21]} 56. Qc4+ {[%emt 0:00:13]} Kb6 {[%emt 0:00:06]} 57. Re2 {[%emt 0:00:19]} Kc7 {[%emt 0:01:37]} 1-0

[Event "Hector S Nazzari Memorial 2019"]
[Site "Montevideo"]
[Date "2019.10.14"]
[Round "1.5"]
[White "Tregarthen, Emiliano"]
[Black "Lopez Azambuja, Nicolas"]
[Result "1/2-1/2"]
[ECO "C17"]
[WhiteElo "2039"]
[BlackElo "2318"]
[Annotator "RC"]
[PlyCount "88"]
[EventDate "2019.10.14"]
[EventType "swiss"]
[EventCountry "URU"]
[SourceTitle "playchess.com"]
[Source "ChessBase"]
[SourceQuality "1"]
[TimeControl "5400+30"]

1. e4 {[%emt 0:00:00]} e6 {[%emt 0:00:00]} 2. d4 {[%emt 0:02:10]} d5 {[%emt 0:00:03]} 3. Nc3 {[%emt 0:00:29]} Bb4 {[%emt 0:00:15]} 4. e5 {[%emt 0:00:11]} c5 {[%emt 0:01:41]} 5. a3 {[%emt 0:00:06]} Ba5 {[%emt 0:00:35]} 6. b4 {[%emt 0:02:55]} cxd4 {[%emt 0:00:30]} 7. Nb5 {[%emt 0:03:01]} Bc7 {[%emt 0:00:14]} 8. Nf3 {[%emt 0:01:45]} Bd7 {[%emt 0:00:22]} 9. Nbxd4 {[%emt 0:02:35]} Ne7 {[%emt 0:03:56]} 10. Bd3 {[%emt 0:01:42]} Nbc6 {[%emt 0:15:42]} 11. Qe2 {[%emt 0:00:30]} Ng6 {[%emt 0:06:22]} 12. Nxc6 {[%emt 0:01:42]} bxc6 {[%emt 0:02:03]} 13. h4 {[%emt 0:00:59]} Qb8 {[%emt 0:02:08]} 14. Bxg6 {[%emt 0:04:44]} hxg6 {[%emt 0:00:24]} 15. O-O {[%emt 0:01:32]} a5 {[%emt 0:04:22]} 16. Rb1 {[%emt 0:24:36]} Bc8 {[%emt 0:13:25]} 17. c4 {[%emt 0:10:11]} Ba6 {[%emt 0:08:28]} 18. b5 {[%emt 0:01:01]} dxc4 {[%emt 0:06:34]} 19. Bh6 {[%emt 0:01:01]} gxh6 {[%emt 0:09:38]} 20. bxa6 {[%emt 0:00:49]} Qc8 {[%emt 0:04:11]} 21. Qxc4 {[%emt 0:00:21]} Qxa6 {[%emt 0:01:44]} 22. Qc5 {[%emt 0:00:37]} Bd8 {[%emt 0:02:33]} 23. Qd6 {[%emt 0:03:56]} c5 {[%emt 0:02:24]} 24. Qxc5 {[%emt 0:00:53]} Be7 {[%emt 0:01:09]} 25. Qe3 {[%emt 0:00:14]} Rd8 {[%emt 0:01:38]} 26. Rfd1 {[%emt 0:01:51]} Rxd1+ {[%emt 0:01:54]} 27. Rxd1 {[%emt 0:00:11]} Qb7 {[%emt 0:01:40]} 28. g3 {[%emt 0:02:06]} Kf8 {[%emt 0:01:13]} 29. Nh2 {[%emt 0:07:32]} h5 {[%emt 0:01:27]} 30. Nf3 {[%emt 0:00:36]} Kg7 {[%emt 0:00:47]} 31. Ng5 {[%emt 0:00:11]} Rd8 {[%emt 0:00:48]} 32. Rxd8 {[%emt 0:01:26]} Bxd8 {[%emt 0:00:02]} 33. Ne4 {[%emt 0:01:01]} Be7 {[%emt 0:04:03]} 34. Nd6 {[%emt 0:01:46]} Qd5 {[%emt 0:00:58]} 35. Ne8+ {[%emt 0:01:09]} Kf8 {[%emt 0:00:43]} 36. Nf6 {[%emt 0:00:31]} Qd1+ {[%emt 0:00:20]} 37. Kh2 {[%emt 0:00:18]} Kg7 {[%emt 0:00:53]} 38. Qg5 {[%emt 0:00:45]} Qf3 {[%emt 0:00:45]} 39. Kg1 {[%emt 0:01:27]} Bxa3 {[%emt 0:01:35]} 40. Ne8+ {[%emt 0:00:42]} Kf8 {[%emt 0:01:05]} 41. Nd6 {[%emt 0:03:10]} Kg7 {[%emt 0:00:22]} 42. Ne8+ {[%emt 0:01:04]} Kf8 {[%emt 0:00:03]} 43. Nd6 {[%emt 0:00:17]} Kg7 {[%emt 0:00:17]} 44. Ne8+ {[%emt 0:00:34]} Kf8 {[%emt 0:00:50]} 1/2-1/2

[Event "Hector S Nazzari Memorial 2019"]
[Site "Montevideo"]
[Date "2019.10.14"]
[Round "1.6"]
[White "Muniz, Rafael"]
[Black "Genta, Alejandro"]
[Result "1-0"]
[ECO "B08"]
[WhiteElo "2282"]
[BlackElo "2036"]
[Annotator "RC"]
[PlyCount "71"]
[EventDate "2019.10.14"]
[EventType "swiss"]
[EventCountry "URU"]
[SourceTitle "playchess.com"]
[Source "ChessBase"]
[SourceQuality "1"]
[TimeControl "5400+30"]

1. e4 {[%emt 0:00:00]} d6 {[%emt 0:00:00]} 2. d4 {[%emt 0:00:27]} Nf6 {[%emt 0:00:00]} 3. Nc3 {[%emt 0:00:13]} g6 {[%emt 0:00:00]} 4. h3 {[%emt 0:00:18]} Bg7 {[%emt 0:00:22]} 5. Nf3 {[%emt 0:00:06]} c6 {[%emt 0:01:02]} 6. a4 {[%emt 0:00:19]} O-O {[%emt 0:06:53]} 7. Be2 {[%emt 0:00:16]} Nbd7 {[%emt 0:09:46]} 8. O-O {[%emt 0:00:56]} Qc7 {[%emt 0:01:47]} 9. Be3 {[%emt 0:01:12]} Re8 {[%emt 0:14:18]} 10. Bc4 {[%emt 0:08:05]} e6 {[%emt 0:04:21]} 11. Bb3 {[%emt 0:09:50]} Nf8 {[%emt 0:24:16]} 12. Qd2 {[%emt 0:04:06]} d5 {[%emt 0:03:05]} 13. Bf4 {[%emt 0:03:25]} Qd8 {[%emt 0:00:32]} 14. Rfe1 {[%emt 0:00:52]} b6 {[%emt 0:02:36]} 15. Bh6 {[%emt 0:08:00]} Bb7 {[%emt 0:02:03]} 16. Bxg7 {[%emt 0:01:28]} Kxg7 {[%emt 0:00:03]} 17. e5 {[%emt 0:00:34]} Ng8 {[%emt 0:01:13]} 18. Ne2 {[%emt 0:01:24]} Ba6 {[%emt 0:02:42]} 19. Nf4 {[%emt 0:02:32]} Ne7 {[%emt 0:02:34]} 20. c3 {[%emt 0:02:59]} c5 {[%emt 0:00:32]} 21. Bc2 {[%emt 0:02:32]} Rc8 {[%emt 0:07:50]} 22. h4 {[%emt 0:03:06]} cxd4 {[%emt 0:01:26]} 23. Nxd4 {[%emt 0:01:04]} Nc6 {[%emt 0:01:08]} 24. Nf3 {[%emt 0:02:57]} Nd7 {[%emt 0:00:31]} 25. h5 {[%emt 0:01:22]} Qe7 {[%emt 0:01:32]} 26. g3 {[%emt 0:06:31]} g5 {[%emt 0:01:33]} 27. h6+ {[%emt 0:05:12]} Kh8 {[%emt 0:01:00]} 28. Nd3 {[%emt 0:04:38]} g4 {[%emt 0:04:46]} 29. Nh2 {[%emt 0:00:57]} Rg8 {[%emt 0:00:05]} 30. Qf4 {[%emt 0:06:38]} Na5 {[%emt 0:03:52]} 31. Nb4 {[%emt 0:01:24]} Bb7 {[%emt 0:02:54]} 32. Rad1 {[%emt 0:01:19]} Rcf8 {[%emt 0:00:47]} 33. Nxg4 {[%emt 0:01:27]} Qg5 {[%emt 0:00:15]} 34. Rd4 {[%emt 0:01:54]} Nc4 {[%emt 0:00:02]} 35. b3 {[%emt 0:01:36]} Qxf4 {[%emt 0:01:10]} 36. Rxf4 {[%emt 0:00:14]} 1-0

[Event "Hector S Nazzari Memorial 2019"]
[Site "Montevideo"]
[Date "2019.10.14"]
[Round "1.7"]
[White "Soto, Nicolas"]
[Black "Coppola, Claudio"]
[Result "0-1"]
[ECO "B00"]
[WhiteElo "2013"]
[BlackElo "2270"]
[Annotator "RC"]
[PlyCount "84"]
[EventDate "2019.10.14"]
[EventType "swiss"]
[EventCountry "URU"]
[SourceTitle "playchess.com"]
[Source "ChessBase"]
[SourceQuality "1"]
[TimeControl "5400+30"]

1. e4 {[%emt 0:00:00]} b6 {[%emt 0:00:18]} 2. d4 {[%emt 0:04:47]} Bb7 {[%emt 0:00:03]} 3. Nc3 {[%emt 0:01:34]} g6 {[%emt 0:00:33]} 4. Nf3 {[%emt 0:01:01]} Bg7 {[%emt 0:00:14]} 5. Be2 {[%emt 0:04:43]} e6 {[%emt 0:00:21]} 6. O-O {[%emt 0:00:19]} Ne7 {[%emt 0:00:04]} 7. Be3 {[%emt 0:01:45]} d6 {[%emt 0:00:26]} 8. Qd2 {[%emt 0:00:21]} h6 {[%emt 0:00:40]} 9. Rad1 {[%emt 0:01:22]} Nd7 {[%emt 0:00:08]} 10. a4 {[%emt 0:02:46]} Nf6 {[%emt 0:10:55]} 11. Bb5+ {[%emt 0:04:39]} Kf8 {[%emt 0:03:23]} 12. Bd3 {[%emt 0:05:25]} g5 {[%emt 0:11:56]} 13. Qe2 {[%emt 0:04:32]} Ng6 {[%emt 0:07:54]} 14. e5 {[%emt 0:04:51]} Bxf3 {[%emt 0:01:34]} 15. Qxf3 {[%emt 0:00:54]} Nh4 {[%emt 0:00:36]} 16. Qc6 {[%emt 0:05:50]} Ng4 {[%emt 0:02:30]} 17. h3 {[%emt 0:02:11]} Nxe3 {[%emt 0:01:36]} 18. fxe3 {[%emt 0:00:05]} Ke7 {[%emt 0:27:25]} 19. g3 {[%emt 0:09:00]} Ng6 {[%emt 0:00:16]} 20. Rf2 {[%emt 0:00:20]} Rf8 {[%emt 0:03:21]} 21. Rdf1 {[%emt 0:23:42]} Nh8 {[%emt 0:05:25]} 22. Be4 {[%emt 0:00:40]} Rc8 {[%emt 0:09:36]} 23. Nb5 {[%emt 0:11:15]} dxe5 {[%emt 0:05:52]} 24. Nxa7 {[%emt 0:00:33]} exd4 {[%emt 0:00:09]} 25. Nxc8+ {[%emt 0:00:17]} Qxc8 {[%emt 0:00:06]} 26. Kg2 {[%emt 0:00:56]} dxe3 {[%emt 0:00:14]} 27. Re2 {[%emt 0:00:29]} f5 {[%emt 0:00:49]} 28. Bxf5 {[%emt 0:04:12]} Rxf5 {[%emt 0:00:40]} 29. Rxf5 {[%emt 0:00:02]} exf5 {[%emt 0:00:04]} 30. Rxe3+ {[%emt 0:00:04]} Kf8 {[%emt 0:01:06]} 31. Rd3 {[%emt 0:00:40]} Nf7 {[%emt 0:04:07]} 32. Rd7 {[%emt 0:04:08]} Ne5 {[%emt 0:01:27]} 33. Rxc7 {[%emt 0:00:11]} Qd8 {[%emt 0:00:31]} 34. Qxb6 {[%emt 0:02:23]} Qd5+ {[%emt 0:00:19]} 35. Kh2 {[%emt 0:01:01]} Nf3+ {[%emt 0:00:17]} 36. Kg2 {[%emt 0:00:11]} Nd2+ {[%emt 0:00:22]} 37. Kh2 {[%emt 0:00:10]} Nf1+ {[%emt 0:00:11]} 38. Kg1 {[%emt 0:00:41]} Bd4+ {[%emt 0:00:05]} 39. Qxd4 {[%emt 0:00:19]} Qxd4+ {[%emt 0:00:02]} 40. Kxf1 {[%emt 0:00:07]} f4 {[%emt 0:00:29]} 41. Rc3 {[%emt 0:00:14]} fxg3 {[%emt 0:01:18]} 42. Rxg3 {[%emt 0:00:08]} Qd1+ {[%emt 0:00:24]} 0-1

[Event "Hector S Nazzari Memorial 2019"]
[Site "Montevideo"]
[Date "2019.10.14"]
[Round "1.8"]
[White "El Ters, Antouan"]
[Black "Durante, Aurelio"]
[Result "0-1"]
[ECO "C87"]
[WhiteElo "2200"]
[BlackElo "1978"]
[Annotator "RC"]
[PlyCount "114"]
[EventDate "2019.10.14"]
[EventType "swiss"]
[EventCountry "URU"]
[SourceTitle "playchess.com"]
[Source "ChessBase"]
[SourceQuality "1"]
[TimeControl "5400+30"]

1. e4 {[%emt 0:00:00]} e5 {[%emt 0:00:08]} 2. Nf3 {[%emt 0:00:00]} Nc6 {[%emt 0:00:03]} 3. Bb5 {[%emt 0:00:16]} a6 {[%emt 0:01:25]} 4. Ba4 {[%emt 0:00:10]} Nf6 {[%emt 0:00:21]} 5. O-O {[%emt 0:00:11]} Be7 {[%emt 0:01:13]} 6. Re1 {[%emt 0:00:48]} d6 {[%emt 0:01:30]} 7. c3 {[%emt 0:01:58]} O-O {[%emt 0:00:15]} 8. d4 {[%emt 0:00:33]} exd4 {[%emt 0:00:31]} 9. cxd4 {[%emt 0:05:00]} Bg4 {[%emt 0:02:11]} 10. Bxc6 {[%emt 0:03:55]} bxc6 {[%emt 0:00:02]} 11. Nbd2 {[%emt 0:03:48]} Re8 {[%emt 0:00:49]} 12. Qc2 {[%emt 0:01:11]} Qd7 {[%emt 0:02:16]} 13. b3 {[%emt 0:01:18]} a5 {[%emt 0:02:49]} 14. Bb2 {[%emt 0:08:00]} Ra6 {[%emt 0:01:24]} 15. Rac1 {[%emt 0:00:35]} Qc8 {[%emt 0:00:58]} 16. Re3 {[%emt 0:04:15]} Nd7 {[%emt 0:01:43]} 17. h3 {[%emt 0:01:40]} Bh5 {[%emt 0:00:19]} 18. e5 {[%emt 0:05:39]} Bg6 {[%emt 0:02:53]} 19. Qd1 {[%emt 0:02:15]} d5 {[%emt 0:10:10]} 20. e6 {[%emt 0:01:57]} fxe6 {[%emt 0:07:14]} 21. Rxe6 {[%emt 0:00:45]} Bd6 {[%emt 0:00:53]} 22. Qe2 {[%emt 0:03:54]} Rf8 {[%emt 0:01:26]} 23. Re1 {[%emt 0:02:35]} Nf6 {[%emt 0:02:14]} 24. Re3 {[%emt 0:03:13]} Rb6 {[%emt 0:04:34]} 25. Ne5 {[%emt 0:01:24]} Be8 {[%emt 0:05:51]} 26. Bc3 {[%emt 0:03:41]} Ra6 {[%emt 0:05:45]} 27. a4 {[%emt 0:01:26]} Ra8 {[%emt 0:00:26]} 28. Qd3 {[%emt 0:04:39]} Nh5 {[%emt 0:07:53]} 29. Ndf3 {[%emt 0:01:54]} Nf4 {[%emt 0:00:34]} 30. Qc2 {[%emt 0:02:16]} Qd8 {[%emt 0:05:21]} 31. Qd2 {[%emt 0:01:34]} c5 {[%emt 0:03:08]} 32. dxc5 {[%emt 0:05:23]} Bxc5 {[%emt 0:00:13]} 33. Nd4 {[%emt 0:00:38]} Qg5 {[%emt 0:01:07]} 34. Rg3 {[%emt 0:13:56]} Nxh3+ {[%emt 0:01:25]} 35. Rxh3 {[%emt 0:00:15]} Qxd2 {[%emt 0:00:09]} 36. Bxd2 {[%emt 0:00:13]} Bxd4 {[%emt 0:00:11]} 37. Rf3 {[%emt 0:03:58]} c5 {[%emt 0:10:14]} 38. Rxf8+ {[%emt 0:01:49]} Kxf8 {[%emt 0:00:02]} 39. Nf3 {[%emt 0:00:47]} Bf6 {[%emt 0:00:14]} 40. Rc1 {[%emt 0:00:32]} Be7 {[%emt 0:00:38]} 41. Bg5 {[%emt 0:00:48]} Bd6 {[%emt 0:00:37]} 42. Ne1 {[%emt 0:01:11]} Bf7 {[%emt 0:01:54]} 43. Nd3 {[%emt 0:00:21]} c4 {[%emt 0:00:12]} 44. bxc4 {[%emt 0:00:31]} dxc4 {[%emt 0:00:03]} 45. Ne1 {[%emt 0:00:50]} Rb8 {[%emt 0:01:25]} 46. Bd2 {[%emt 0:00:24]} Bb4 {[%emt 0:00:22]} 47. Rb1 {[%emt 0:00:15]} Bg6 {[%emt 0:02:41]} 48. Rb2 {[%emt 0:01:12]} Ke8 {[%emt 0:00:13]} 49. Nc2 {[%emt 0:00:44]} Bxc2 {[%emt 0:00:37]} 50. Rxc2 {[%emt 0:01:14]} Bxd2 {[%emt 0:00:44]} 51. Rxd2 {[%emt 0:00:06]} Rb4 {[%emt 0:00:08]} 52. Ra2 {[%emt 0:00:20]} Kd7 {[%emt 0:01:43]} 53. Kf1 {[%emt 0:00:25]} Kc6 {[%emt 0:01:25]} 54. Ke2 {[%emt 0:01:07]} Kc5 {[%emt 0:00:11]} 55. Ke3 {[%emt 0:00:25]} Rb3+ {[%emt 0:00:17]} 56. Ke4 {[%emt 0:00:19]} Rb1 {[%emt 0:01:05]} 57. f4 {[%emt 0:00:28]} Kb4 {[%emt 0:01:23]} 0-1